fUST/lending_fUST_20250801
["ID","MTS","AMOUNT","RATE_DAILY","PERIOD"]
[376484991,1753993843944,-536.24353267,0.00020313,2]
[376484992,1753993843953,-460.0,0.00020313,2]
[376484993,1753993843963,-460.0,0.00020313,2]
[376484994,1753993843972,-460.0,0.00020313,2]
[376484995,1753993843982,-460.0,0.00020313,2]
[376484996,1753993843991,-460.0,0.00020313,2]
[376484997,1753993844000,-460.0,0.00020313,2]
[376484998,1753993844010,-460.0,0.00020313,2]
[376484999,1753993844019,-460.0,0.00020313,2]
[376485000,1753993844028,-460.0,0.00020313,2]
[376485001,1753993844037,-461.31819564,0.00020313,2]
[376485002,1753993844046,-460.0,0.00020313,2]
[376485003,1753993844056,-460.0,0.00020313,2]
[376485004,1753993844065,-460.0,0.00020313,2]
[376485006,1753993844075,-460.0,0.00020313,2]
[376485008,1753993844084,-462.17291887,0.00020313,2]
[376485010,1753993844092,-462.09,0.00020313,2]
[376485012,1753993844102,-460.0,0.00020313,2]
[376485014,1753993844111,-460.0,0.00020313,2]
[376485016,1753993844120,-460.0,0.00020313,2]
[376485018,1753993844131,-460.0,0.00020313,2]
[376485020,1753993844140,-463.34728659,0.00020313,2]
[376485022,1753993844149,-460.0,0.00020313,2]
[376485024,1753993844159,-460.0,0.00020313,2]
[376485026,1753993844168,-460.0,0.00020313,2]
[376485028,1753993844179,-460.0,0.00020313,2]
[376485030,1753993844190,-460.0,0.00020313,2]
[376485033,1753993844199,-460.0,0.00020313,2]
[376485034,1753993844212,-460.0,0.00020313,2]
[376485036,1753993844222,-460.0,0.00020313,2]
[376485038,1753993844231,-460.0,0.00020313,2]
[376485040,1753993844240,-460.0,0.00020313,2]
[376485042,1753993844251,-500.0,0.00020313,2]
[376485044,1753993844260,-460.0,0.00020313,2]
[376485046,1753993844270,-460.0,0.00020313,2]
[376485048,1753993844279,-460.0,0.00020313,2]
[376485050,1753993844290,-460.0,0.00020313,2]
[376485052,1753993844300,-460.0,0.00020313,2]
[376485054,1753993844310,-460.0,0.00020313,2]
[376485056,1753993844319,-460.0,0.00020313,2]
[376485059,1753993844328,-460.0,0.00020313,2]
[376485060,1753993844338,-460.0,0.00020313,2]
[376485062,1753993844347,-460.0,0.00020313,2]
[376485064,1753993844357,-460.0,0.00020313,2]
[376485066,1753993844366,-460.0,0.00020313,2]
[376485069,1753993844376,-307.74959897,0.00020313,2]
[376485070,1753993844385,-460.0,0.00020313,2]
[376485072,1753993844395,-460.0,0.00020313,2]
[376485074,1753993844404,-460.0,0.00020313,2]
[376485077,1753993844416,-500.0,0.00020313,2]
[376485078,1753993844429,-460.0,0.00020313,2]
[376485080,1753993844439,-460.0,0.00020313,2]
[376485083,1753993844449,-460.0,0.00020313,2]
[376485085,1753993844458,-461.08006239,0.00020313,2]
[376485087,1753993844468,-460.0,0.00020313,2]
[376485088,1753993844477,-460.0,0.00020313,2]
[376485090,1753993844486,-460.0,0.00020313,2]
[376485092,1753993844495,-460.0,0.00020313,2]
[376485094,1753993844505,-460.0,0.00020313,2]
[376485096,1753993844514,-460.0,0.00020313,2]
[376485098,1753993844524,-460.0,0.00020313,2]
[376485100,1753993844534,-553.04529743,0.00020313,2]
[376485103,1753993844544,-460.0,0.00020313,2]
[376485105,1753993844553,-460.0,0.00020313,2]
[376485107,1753993844562,-460.0,0.00020313,2]
[376485109,1753993844572,-460.0,0.00020313,2]
[376485111,1753993844581,-460.0,0.00020313,2]
[376485112,1753993844590,-464.16,0.00020313,2]
[376485114,1753993844600,-529.75,0.00020313,2]
[376485117,1753993844610,-460.0,0.00020313,2]
[376485119,1753993844619,-734.8,0.00020313,2]
[376485121,1753993844628,-460.0,0.00020313,2]
[376485123,1753993844637,-470.15,0.00020313,2]
[376485125,1753993844647,-460.0,0.00020313,2]
[376485127,1753993844656,-460.0,0.00020313,2]
[376485129,1753993844665,-262.13692333,0.00020313,2]
[376485188,1753993845225,-460.0,0.00019178,2]
[376485191,1753993845239,-460.0,0.00019178,2]
[376485193,1753993845250,-460.0,0.00019178,2]
[376485195,1753993845259,-1204.16,0.00019178,2]
[376485197,1753993845268,-460.0,0.00019452,2]
[376485198,1753993845278,-1762.62,0.00019452,2]
[376485200,1753993845288,-1204.16,0.00019452,2]
[376485203,1753993845299,-460.0,0.00019726,2]
[376485204,1753993845307,-1762.62,0.00019726,2]
[376485207,1753993845317,-1204.16,0.00019726,2]
[376485208,1753993845326,-460.0,0.0002,2]
[376485210,1753993845335,-1762.62,0.0002,2]
[376485212,1753993845344,-1204.16,0.0002,2]
[376485214,1753993845353,-460.0,0.00020273,2]
[376485217,1753993845362,-1762.62,0.00020273,2]
[376485220,1753993845375,-1204.16,0.00020273,2]
[376485222,1753993845384,-197.86307667,0.00020313,2]
[376485224,1753993845394,-5201.33,0.00020313,2]
[376485226,1753993845403,-460.0,0.00020313,2]
[376485228,1753993845412,-460.0,0.00020313,2]
[376485230,1753993845421,-460.0,0.00020313,2]
[376485232,1753993845432,-460.0,0.00020313,2]
[376485234,1753993845441,-382.52899536,0.00020313,2]
[376485236,1753993845453,-77.47100464,0.00020313,2]
[376485238,1753993845462,-460.0,0.00020313,2]
[376485240,1753993845472,-54.71783291,0.00020313,2]
[376485247,1753993845529,-405.74945416,0.00020313,2]
[376485249,1753993845538,-460.0,0.00020313,2]
[376485251,1753993845547,-460.0,0.00020313,2]
[376485253,1753993845556,-460.0,0.00020313,2]
[376485255,1753993845566,-575.50485324,0.00020313,2]
[376485257,1753993845577,-460.0,0.00020313,2]
[376485259,1753993845586,-460.0,0.00020313,2]
[376485261,1753993845595,-460.0,0.00020313,2]
[376485263,1753993845604,-460.0,0.00020313,2]
[376485265,1753993845613,-460.0,0.00020313,2]
[376485267,1753993845622,-460.0,0.00020313,2]
[376485269,1753993845631,-460.0,0.00020313,2]
[376485271,1753993845640,-460.0,0.00020313,2]
[376485273,1753993845649,-364.77191214,0.00020313,2]
[376485298,1753993845905,-663.63,0.00019178,2]
[376485300,1753993845914,-95.22808786,0.00020313,2]
[376485302,1753993845926,-460.0,0.00020313,2]
[376485304,1753993845935,-460.0,0.00020313,2]
[376485306,1753993845944,-592.98,0.00020313,2]
[376485308,1753993845953,-460.0,0.00020313,2]
[376485310,1753993845962,-255.27271483,0.00020313,2]
[376485312,1753993845971,-460.0,0.00020313,2]
[376485314,1753993845980,-460.0,0.00020313,2]
[376485316,1753993845989,-564.49,0.00020313,2]
[376485318,1753993845998,-460.0,0.00020313,2]
[376485320,1753993846007,-460.0,0.00020313,2]
[376485322,1753993846016,-460.0,0.00020313,2]
[376485324,1753993846025,-460.0,0.00020313,2]
[376485326,1753993846035,-460.0,0.00020313,2]
[376485328,1753993846044,-310.06861726,0.00020313,2]
[376485330,1753993846053,-1480.06,0.00020313,2]
[376485332,1753993846063,-462.98464384,0.00020313,2]
[376485334,1753993846072,-460.0,0.00020313,2]
[376485336,1753993846081,-460.0,0.00020313,2]
[376485338,1753993846090,-460.0,0.00020313,2]
[376485340,1753993846099,-643.64,0.00020313,2]
[376485342,1753993846108,-460.0,0.00020313,2]
[376485344,1753993846117,-532.96,0.00020313,2]
[376485346,1753993846126,-460.0,0.00020313,2]
[376485348,1753993846135,-460.0,0.00020313,2]
[376485350,1753993846144,-494.7,0.00020313,2]
[376485352,1753993846154,-906.76,0.00020313,2]
[376485354,1753993846163,-460.0,0.00020313,2]
[376485356,1753993846175,-460.0,0.00020313,2]
[376485358,1753993846184,-474.6731862,0.00020313,2]
[376485360,1753993846193,-460.0,0.00020313,2]
[376485362,1753993846202,-460.0,0.00020313,2]
[376485364,1753993846217,-493.77,0.00020313,2]
[376485366,1753993846227,-460.0,0.00020313,2]
[376485369,1753993846238,-460.0,0.00020313,2]
[376485371,1753993846247,-460.0,0.00020313,2]
[376485373,1753993846258,-460.0,0.00020313,2]
[376485375,1753993846268,-460.0,0.00020313,2]
[376485377,1753993846277,-460.0,0.00020313,2]
[376485379,1753993846288,-460.0,0.00020313,2]
[376485381,1753993846297,-460.0,0.00020313,2]
[376485383,1753993846307,-460.0,0.00020313,2]
[376485385,1753993846316,-2402.36,0.00020313,2]
[376485387,1753993846327,-460.0,0.00020313,2]
[376485389,1753993846337,-460.0,0.00020313,2]
[376485391,1753993846348,-646.09,0.00020313,2]
[376485392,1753993846357,-460.0,0.00020313,2]
[376485395,1753993846367,-460.0,0.00020313,2]
[376485396,1753993846376,-460.0,0.00020313,2]
[376485399,1753993846386,-460.0,0.00020313,2]
[376485401,1753993846395,-460.0,0.00020313,2]
[376485403,1753993846405,-460.0,0.00020313,2]
[376485405,1753993846416,-460.0,0.00020313,2]
[376485407,1753993846428,-460.0,0.00020313,2]
[376485409,1753993846437,-460.0,0.00020313,2]
[376485411,1753993846446,-460.0,0.00020313,2]
[376485412,1753993846456,-460.0,0.00020313,2]
[376485413,1753993846466,-460.0,0.00020313,2]
[376485414,1753993846475,-460.0,0.00020313,2]
[376485415,1753993846485,-923.49,0.00020313,2]
[376485416,1753993846495,-460.0,0.00020313,2]
[376485418,1753993846504,-490.83,0.00020313,2]
[376485420,1753993846514,-460.0,0.00020313,2]
[376485422,1753993846524,-460.0,0.00020313,2]
[376485424,1753993846533,-460.0,0.00020313,2]
[376485426,1753993846543,-2337.15,0.00020313,2]
[376485428,1753993846552,-1817.79,0.00020313,2]
[376485430,1753993846562,-460.0,0.00020313,2]
[376485432,1753993846571,-460.0,0.00020313,2]
[376485434,1753993846581,-460.0,0.00020313,2]
[376485436,1753993846590,-460.0,0.00020313,2]
[376485438,1753993846600,-460.0,0.00020313,2]
[376485440,1753993846610,-460.0,0.00020313,2]
[376485442,1753993846619,-460.0,0.00020313,2]
[376485444,1753993846629,-608.01,0.00020313,2]
[376485446,1753993846638,-460.0,0.00020313,2]
[376485448,1753993846647,-702.22,0.00020313,2]
[376485450,1753993846656,-460.0,0.00020313,2]
[376485452,1753993846667,-460.0,0.00020313,2]
[376485454,1753993846677,-460.0,0.00020313,2]
[376485456,1753993846686,-629.1,0.00020313,2]
[376485458,1753993846695,-659.86,0.00020313,2]
[376485460,1753993846705,-460.0,0.00020313,2]
[376485462,1753993846714,-460.0,0.00020313,2]
[376485465,1753993846724,-460.0,0.00020313,2]
[376485467,1753993846733,-460.78672651,0.00020313,2]
[376485468,1753993846743,-859.57,0.00020313,2]
[376485471,1753993846754,-460.0,0.00020313,2]
[376485473,1753993846763,-1807.98,0.00020313,2]
[376485475,1753993846773,-460.0,0.00020313,2]
[376485477,1753993846782,-369.44801671,0.00020313,2]
[376485479,1753993846792,-563.64,0.00020313,2]
[376485481,1753993846801,-460.0,0.00020313,2]
[376485483,1753993846811,-653.99,0.00020313,2]
[376485485,1753993846820,-460.0,0.00020313,2]
[376485487,1753993846830,-460.0,0.00020313,2]
[376485489,1753993846840,-460.0,0.00020313,2]
[376485491,1753993846849,-1050.19,0.00020313,2]
[376485493,1753993846859,-460.0,0.00020313,2]
[376485495,1753993846870,-460.0,0.00020313,2]
[376485497,1753993846880,-460.0,0.00020313,2]
[376485499,1753993846889,-460.0,0.00020313,2]
[376485501,1753993846899,-460.0,0.00020313,2]
[376485503,1753993846908,-460.0,0.00020313,2]
[376485505,1753993846918,-460.0,0.00020313,2]
[376485507,1753993846931,-460.0,0.00020313,2]
[376485509,1753993846941,-460.0,0.00020313,2]
[376485511,1753993846950,-460.0,0.00020313,2]
[376485513,1753993846959,-827.97,0.00020313,2]
[376485515,1753993846969,-2762.28,0.00020313,2]
[376485517,1753993846978,-460.0,0.00020313,2]
[376485520,1753993846988,-460.0,0.00020313,2]
[376485522,1753993846997,-460.0,0.00020313,2]
[376485524,1753993847007,-460.0,0.00020313,2]
[376485526,1753993847016,-716.31,0.00020313,2]
[376485528,1753993847026,-460.0,0.00020313,2]
[376485530,1753993847036,-460.0,0.00020313,2]
[376485532,1753993847045,-504.32855811,0.00020313,2]
[376485534,1753993847055,-460.0,0.00020313,2]
[376485536,1753993847064,-460.87917909,0.00020313,2]
[376485538,1753993847075,-500.0,0.00020373,2]
[376485540,1753993847084,-500.0,0.00020373,2]
[376485542,1753993847094,-500.0,0.00020416,2]
[376485544,1753993847103,-394.9280856,0.00020417,3]
[376485546,1753993847113,-151.0,0.00020547,2]
[376485549,1753993847122,-460.0,0.00020547,2]
[376485551,1753993847131,-460.0,0.00020547,2]
[376485553,1753993847140,-527.9,0.00020547,2]
[376485555,1753993847149,-460.0,0.00020547,2]
[376485557,1753993847158,-460.0,0.00020547,2]
[376485559,1753993847167,-460.0,0.00020547,2]
[376485561,1753993847181,-460.0,0.00020547,2]
[376485563,1753993847190,-460.0,0.00020547,2]
[376485565,1753993847199,-460.0,0.00020547,2]
[376485567,1753993847211,-460.0,0.00020547,2]
[376485569,1753993847220,-951.04,0.00020547,2]
[376485571,1753993847230,-460.0,0.00020547,2]
[376485573,1753993847239,-513.32,0.00020547,2]
[376485575,1753993847248,-2034.62,0.00020547,2]
[376485577,1753993847258,-460.0,0.00020547,2]
[376485579,1753993847268,-4951.28,0.00020547,2]
[376485581,1753993847278,-460.0,0.00020547,2]
[376485583,1753993847287,-1343.44,0.00020547,2]
[376485585,1753993847297,-579.97,0.00020547,2]
[376485587,1753993847307,-460.0,0.00020547,2]
[376485589,1753993847318,-659.34,0.00020547,2]
[376485591,1753993847327,-2143.87,0.00020547,2]
[376485594,1753993847337,-2537.1,0.00020547,2]
[376485596,1753993847347,-460.0,0.00020547,2]
[376485598,1753993847356,-460.0,0.00020547,2]
[376485600,1753993847365,-534.17,0.00020547,2]
[376485602,1753993847375,-519.53,0.00020547,2]
[376485604,1753993847384,-460.0,0.00020547,2]
[376485606,1753993847394,-460.0,0.00020547,2]
[376485608,1753993847403,-1204.16,0.00020547,2]
[376485610,1753993847412,-1762.62,0.00020547,2]
[376485612,1753993847421,-800.0,0.00020551,2]
[376485614,1753993847432,-355.35077113,0.00020585,2]
[376485616,1753993847441,-460.0,0.00020587,2]
[376485618,1753993847450,-185.67975847,0.00020587,2]
[376485620,1753993847459,-460.0,0.00020587,2]
[376485622,1753993847468,-460.0,0.00020587,2]
[376485624,1753993847478,-460.0,0.00020587,2]
[376485626,1753993847488,-432.94225072,0.00020587,2]
[376485628,1753993847498,-460.0,0.00020587,2]
[376485630,1753993847507,-460.0,0.00020587,2]
[376485632,1753993847517,-460.0,0.00020587,2]
[376485634,1753993847527,-460.0,0.00020587,2]
[376485636,1753993847536,-460.0,0.00020587,2]
[376485638,1753993847546,-460.0,0.00020587,2]
[376485640,1753993847556,-460.0,0.00020587,2]
[376485642,1753993847565,-460.0,0.00020587,2]
[376485644,1753993847575,-460.0,0.00020587,2]
[376485646,1753993847584,-460.0,0.00020587,2]
[376485648,1753993847594,-460.0,0.00020587,2]
[376485650,1753993847604,-460.0,0.00020587,2]
[376485653,1753993847613,-460.0,0.00020587,2]
[376485655,1753993847622,-460.0,0.00020587,2]
[376485657,1753993847632,-460.0,0.00020587,2]
[376485659,1753993847641,-460.0,0.00020587,2]
[376485661,1753993847650,-171.08,0.00020587,2]
[376485663,1753993847659,-460.0,0.00020587,2]
[376485665,1753993847669,-460.0,0.00020587,2]
[376485667,1753993847681,-460.0,0.00020587,2]
[376485669,1753993847692,-460.0,0.00020587,2]
[376485671,1753993847701,-460.0,0.00020587,2]
[376485673,1753993847711,-460.0,0.00020587,2]
[376485675,1753993847720,-460.0,0.00020587,2]
[376485677,1753993847730,-460.0,0.00020587,2]
[376485679,1753993847739,-460.0,0.00020587,2]
[376485681,1753993847749,-460.0,0.00020587,2]
[376485683,1753993847759,-460.0,0.00020587,2]
[376485685,1753993847768,-460.0,0.00020587,2]
[376485687,1753993847778,-460.0,0.00020587,2]
[376485689,1753993847787,-460.0,0.00020587,2]
[376485691,1753993847796,-460.0,0.00020587,2]
[376485693,1753993847806,-460.0,0.00020587,2]
[376485695,1753993847815,-460.0,0.00020587,2]
[376485697,1753993847824,-460.0,0.00020587,2]
[376485699,1753993847834,-460.0,0.00020587,2]
[376485701,1753993847843,-464.16,0.00020587,2]
[376485703,1753993847853,-529.75,0.00020587,2]
[376485706,1753993847863,-734.8,0.00020587,2]
[376485708,1753993847873,-460.0,0.00020587,2]
[376485710,1753993847883,-470.15,0.00020587,2]
[376485712,1753993847892,-460.0,0.00020587,2]
[376485714,1753993847902,-460.0,0.00020587,2]
[376485716,1753993847912,-5201.33,0.00020587,2]
[376485718,1753993847923,-223.49787712,0.00020587,2]
[376485720,1753993847933,-460.0,0.00020587,2]
[376485722,1753993847943,-460.0,0.00020587,2]
[376485724,1753993847952,-460.0,0.00020587,2]
[376485726,1753993847962,-460.0,0.00020587,2]
[376485728,1753993847971,-460.0,0.00020587,2]
[376485730,1753993847981,-460.0,0.00020587,2]
[376485732,1753993847990,-460.0,0.00020587,2]
[376485734,1753993848000,-199.28404002,0.00020587,2]
[376485736,1753993848009,-460.0,0.00020587,2]
[376485739,1753993848019,-592.98,0.00020587,2]
[376485740,1753993848028,-460.0,0.00020587,2]
[376485743,1753993848038,-564.49,0.00020587,2]
[376485745,1753993848047,-460.0,0.00020587,2]
[376485747,1753993848057,-460.0,0.00020587,2]
[376485749,1753993848067,-460.0,0.00020587,2]
[376485751,1753993848076,-462.10793454,0.00020587,2]
[376485753,1753993848086,-1480.06,0.00020587,2]
[376485755,1753993848096,-466.04290391,0.00020587,2]
[376485757,1753993848105,-643.64,0.00020587,2]
[376485759,1753993848115,-532.96,0.00020587,2]
[376485761,1753993848124,-460.0,0.00020587,2]
[376485763,1753993848134,-494.7,0.00020587,2]
[376485765,1753993848143,-906.76,0.00020587,2]
[376485767,1753993848153,-460.0,0.00020587,2]
[376485769,1753993848162,-493.77,0.00020587,2]
[376485771,1753993848173,-460.0,0.00020587,2]
[376485773,1753993848182,-2402.36,0.00020587,2]
[376485775,1753993848192,-460.0,0.00020587,2]
[376485777,1753993848202,-460.0,0.00020587,2]
[376485779,1753993848214,-646.09,0.00020587,2]
[376485781,1753993848224,-460.0,0.00020587,2]
[376485784,1753993848233,-460.0,0.00020587,2]
[376485786,1753993848243,-460.0,0.00020587,2]
[376485788,1753993848253,-460.0,0.00020587,2]
[376485790,1753993848263,-460.0,0.00020587,2]
[376485792,1753993848272,-460.0,0.00020587,2]
[376485794,1753993848282,-460.0,0.00020587,2]
[376485796,1753993848293,-460.0,0.00020587,2]
[376485798,1753993848303,-923.49,0.00020587,2]
[376485800,1753993848315,-460.0,0.00020587,2]
[376485802,1753993848324,-490.83,0.00020587,2]
[376485804,1753993848333,-460.0,0.00020587,2]
[376485806,1753993848343,-460.0,0.00020587,2]
[376485808,1753993848353,-2337.15,0.00020587,2]
[376485811,1753993848362,-1817.79,0.00020587,2]
[376485813,1753993848372,-460.0,0.00020587,2]
[376485815,1753993848381,-460.0,0.00020587,2]
[376485817,1753993848392,-460.0,0.00020587,2]
[376485819,1753993848401,-460.0,0.00020587,2]
[376485835,1753993848543,-608.01,0.00020587,2]
[376485837,1753993848557,-463.84938887,0.00020587,2]
[376485839,1753993848566,-702.22,0.00020587,2]
[376485841,1753993848576,-461.77423099,0.00020587,2]
[376485843,1753993848586,-629.1,0.00020587,2]
[376485845,1753993848596,-659.86,0.00020587,2]
[376485847,1753993848605,-460.0,0.00020587,2]
[376485849,1753993848615,-460.0,0.00020587,2]
[376485851,1753993848624,-460.0,0.00020587,2]
[376485853,1753993848634,-460.0,0.00020587,2]
[376485855,1753993848643,-859.57,0.00020587,2]
[376485857,1753993848652,-1807.98,0.00020587,2]
[376485859,1753993848661,-460.0,0.00020587,2]
[376485861,1753993848671,-563.64,0.00020587,2]
[376485863,1753993848682,-653.99,0.00020587,2]
[376485865,1753993848692,-460.0,0.00020587,2]
[376485867,1753993848701,-1050.19,0.00020587,2]
[376485869,1753993848711,-460.0,0.00020587,2]
[376485871,1753993848721,-460.0,0.00020587,2]
[376485873,1753993848730,-460.0,0.00020587,2]
[376485875,1753993848739,-460.0,0.00020587,2]
[376485877,1753993848749,-460.0,0.00020587,2]
[376485879,1753993848757,-461.7957429,0.00020587,2]
[376485881,1753993848766,-827.97,0.00020587,2]
[376485884,1753993848775,-2762.28,0.00020587,2]
[376485886,1753993848784,-460.0,0.00020587,2]
[376485888,1753993848793,-716.31,0.00020587,2]
[376485890,1753993848803,-460.0,0.00020587,2]
[376485891,1753993848812,-460.0,0.00020587,2]
[376485893,1753993848821,-460.0,0.00020587,2]
[376485895,1753993848830,-394.9280856,0.0002059,3]
[376485897,1753993848839,-731.1,0.00020643,3]
[376485899,1753993848849,-394.9280856,0.00020762,3]
[376485901,1753993848858,-183.46590917,0.00020767,2]
[376485903,1753993848867,-420.0,0.00020792,2]
[376485905,1753993848877,-151.0,0.00020821,2]
[376485907,1753993848886,-460.0,0.00020821,2]
[376485909,1753993848895,-460.0,0.00020821,2]
[376485911,1753993848905,-527.9,0.00020821,2]
[376485913,1753993848914,-460.0,0.00020821,2]
[376485915,1753993848925,-460.0,0.00020821,2]
[376485917,1753993848934,-460.0,0.00020821,2]
[376485919,1753993848943,-184.18409418,0.00020821,2]
[376485921,1753993848952,-460.0,0.00020821,2]
[376485923,1753993848961,-460.0,0.00020821,2]
[376485925,1753993848970,-460.0,0.00020821,2]
[376485927,1753993848979,-951.04,0.00020821,2]
[376485929,1753993848988,-605.92136584,0.00020821,2]
[376485932,1753993848998,-513.32,0.00020821,2]
[376485934,1753993849007,-2034.62,0.00020821,2]
[376485936,1753993849016,-460.0,0.00020821,2]
[376485938,1753993849025,-4951.28,0.00020821,2]
[376485940,1753993849034,-460.0,0.00020821,2]
[376485942,1753993849044,-1343.44,0.00020821,2]
[376485943,1753993849053,-579.97,0.00020821,2]
[376485946,1753993849063,-460.0,0.00020821,2]
[376485947,1753993849072,-659.34,0.00020821,2]
[376485949,1753993849082,-2143.87,0.00020821,2]
[376485951,1753993849091,-2537.1,0.00020821,2]
[376485953,1753993849100,-460.0,0.00020821,2]
[376485955,1753993849109,-460.0,0.00020821,2]
[376485957,1753993849119,-534.17,0.00020821,2]
[376485959,1753993849128,-519.53,0.00020821,2]
[376485961,1753993849137,-460.0,0.00020821,2]
[376485963,1753993849146,-460.0,0.00020821,2]
[376485965,1753993849155,-1204.16,0.00020821,2]
[376485967,1753993849165,-1762.62,0.00020821,2]
[376485969,1753993849174,-460.0,0.00020861,2]
[376485971,1753993849182,-460.0,0.00020861,2]
[376485973,1753993849192,-460.0,0.00020861,2]
[376485975,1753993849201,-460.0,0.00020861,2]
[376485977,1753993849211,-460.0,0.00020861,2]
[376485979,1753993849220,-460.0,0.00020861,2]
[376485981,1753993849229,-460.0,0.00020861,2]
[376485983,1753993849238,-460.0,0.00020861,2]
[376485985,1753993849247,-460.0,0.00020861,2]
[376485987,1753993849257,-460.0,0.00020861,2]
[376485989,1753993849266,-460.0,0.00020861,2]
[376485991,1753993849276,-460.0,0.00020861,2]
[376485993,1753993849285,-460.0,0.00020861,2]
[376485995,1753993849297,-460.0,0.00020861,2]
[376485997,1753993849308,-460.0,0.00020861,2]
[376486000,1753993849320,-460.0,0.00020861,2]
[376486002,1753993849330,-478.90451859,0.00020861,2]
[376486004,1753993849339,-460.0,0.00020861,2]
[376486006,1753993849348,-460.0,0.00020861,2]
[376486008,1753993849357,-460.0,0.00020861,2]
[376486010,1753993849366,-460.0,0.00020861,2]
[376486012,1753993849375,-460.0,0.00020861,2]
[376486014,1753993849385,-460.0,0.00020861,2]
[376486016,1753993849395,-460.0,0.00020861,2]
[376486018,1753993849403,-460.0,0.00020861,2]
[376486020,1753993849412,-460.0,0.00020861,2]
[376486022,1753993849422,-460.0,0.00020861,2]
[376486024,1753993849431,-460.0,0.00020861,2]
[376486026,1753993849440,-460.0,0.00020861,2]
[376486028,1753993849449,-464.16,0.00020861,2]
[376486030,1753993849458,-529.75,0.00020861,2]
[376486032,1753993849468,-734.8,0.00020861,2]
[376486034,1753993849477,-460.0,0.00020861,2]
[376486036,1753993849487,-470.15,0.00020861,2]
[376486038,1753993849496,-469.71720511,0.00020861,2]
[376486040,1753993849505,-5201.33,0.00020861,2]
[376486042,1753993849514,-460.0,0.00020861,2]
[376486044,1753993849523,-460.0,0.00020861,2]
[376486046,1753993849533,-460.0,0.00020861,2]
[376486048,1753993849542,-460.0,0.00020861,2]
[376486050,1753993849551,-460.0,0.00020861,2]
[376486052,1753993849560,-300.85306685,0.00020861,2]
[376486054,1753993849569,-592.98,0.00020861,2]
[376486056,1753993849577,-460.0,0.00020861,2]
[376486058,1753993849587,-564.49,0.00020861,2]
[376486060,1753993849596,-460.0,0.00020861,2]
[376486062,1753993849605,-1480.06,0.00020861,2]
[376486064,1753993849614,-643.64,0.00020861,2]
[376486066,1753993849624,-532.96,0.00020861,2]
[376486068,1753993849632,-460.0,0.00020861,2]
[376486070,1753993849641,-494.7,0.00020861,2]
[376486072,1753993849650,-906.76,0.00020861,2]
[376486074,1753993849659,-460.0,0.00020861,2]
[376486076,1753993849668,-493.77,0.00020861,2]
[376486078,1753993849678,-2402.36,0.00020861,2]
[376486080,1753993849687,-460.0,0.00020861,2]
[376486082,1753993849696,-646.09,0.00020861,2]
[376486084,1753993849705,-460.0,0.00020861,2]